fUSD/lending_fUSD_20260414
["ID","MTS","AMOUNT","RATE_DAILY","PERIOD"]
[420482474,1776145696527,-2318.31488333,0.00045216,120]
[420482475,1776145696566,-414.66389037,0.00045216,120]
[420482476,1776145696611,-2804.09513253,0.00045216,30]
[420482477,1776145696646,-70230.83913471,0.00045216,120]
[420482478,1776145696684,-176.83,0.00045216,120]
[420482479,1776145696713,-499949.50005104,0.00045216,120]
[420482480,1776145696740,-1007.12447517,0.00045216,60]
[420482481,1776145696772,-2000.0,0.00045216,30]
[420482482,1776145696802,-2000.0,0.00045216,31]
[420482483,1776145696829,-2000.0,0.00045216,32]
[420482484,1776145696936,-2000.0,0.00045216,33]
[420482485,1776145696970,-5000000.0,0.00045216,30]
[420482486,1776145696999,-2000.0,0.00045216,34]
[420482487,1776145697030,-2000.0,0.00045216,35]
[420482488,1776145697064,-2000.0,0.00045216,36]
[420482489,1776145697094,-2000.0,0.00045216,37]
[420482490,1776145697129,-2000.0,0.00045216,38]
[420482491,1776145697166,-2000.0,0.00045216,39]
[420482492,1776145697207,-2000.0,0.00045216,40]
[420482493,1776145697250,-2000.0,0.00045216,41]
[420482494,1776145697324,-2000.0,0.00045216,42]
[420482495,1776145697374,-2000.0,0.00045216,43]
[420482496,1776145697417,-2000.0,0.00045216,44]
[420482497,1776145697461,-30702.48044014,0.00045216,120]
[420482498,1776145697509,-2986.74844075,0.00045216,62]
[420482499,1776145697551,-622050.0,0.00045216,60]
[420482500,1776145697596,-1118.66666496,0.00045216,30]
[420482501,1776145697631,-6000.0,0.00045216,30]
[420482502,1776145697671,-6580.4,0.00045216,60]
[420482503,1776145697702,-15500.0,0.00045216,120]
[420482504,1776145697747,-175.46,0.00045216,120]
[420482505,1776145697782,-50000.0,0.00045216,120]
[420482506,1776145697827,-50000.0,0.00045216,120]
[420482507,1776145697868,-46322.94,0.00045216,120]
[420482508,1776145697913,-224372.53579925,0.00045216,40]
[420482509,1776145697960,-878838.00647838,0.00045216,120]
[420482510,1776145707846,-121161.99352162,0.00045216,120]
[420482511,1776145707901,-8878838.00647838,0.00045216,45]
[420482512,1776145717350,-857162.60970978,0.00045216,45]
[420482513,1776145717410,-789.0,0.00045216,120]
[420482514,1776145717466,-789.33141056,0.00045216,120]
[420482515,1776145717511,-376275.30245575,0.00045216,30]
[420482516,1776145717545,-172.0,0.00045216,30]
[420482517,1776145717581,-688.0,0.00045216,120]
[420482518,1776145717614,-2000.0,0.00045216,120]
[420482519,1776145717650,-2000.0,0.00045216,120]
[420482520,1776145717683,-2000.0,0.00045216,120]
[420482521,1776145717731,-1959.63,0.00045216,120]
[420482522,1776145717787,-607188.55932512,0.00045216,120]
[420482523,1776145717832,-1308.51193442,0.00045216,120]
[420482524,1776145717888,-213273.7428087,0.00045216,60]
[420482525,1776145717932,-162.89,0.00045216,120]
[420482526,1776145717968,-162.89,0.00045216,120]
[420482527,1776145718001,-162.89,0.00045216,120]
[420482528,1776145718039,-162.89,0.00045216,120]
[420482529,1776145718079,-162.89,0.00045216,120]
[420482530,1776145718118,-162.92,0.00045216,120]
[420482531,1776145718172,-167.37,0.00045216,120]
[420482532,1776145718209,-167.37,0.00045216,120]
[420482533,1776145718244,-167.37,0.00045216,120]
[420482534,1776145718292,-167.37,0.00045216,120]
[420482535,1776145718326,-167.37,0.00045216,120]
[420482536,1776145718362,-167.41,0.00045216,120]
[420482537,1776145718401,-157.17612935,0.00045216,30]
[420482538,1776145718451,-2047.30274789,0.00045216,120]
[420482539,1776145718487,-5000.0,0.00045216,120]
[420482540,1776145718533,-20328.93380111,0.00045216,60]
[420482541,1776145718580,-8477.85223046,0.00045216,30]
[420482542,1776145718630,-1000.0,0.00045216,120]
[420482543,1776145718700,-1406.68722688,0.00045216,38]
[420482544,1776145718750,-11002.82738007,0.00045216,90]
[420482545,1776145718819,-1000.0,0.00045216,30]
[420482546,1776145718872,-57191.97546568,0.00045216,30]
[420482547,1776145718953,-287.40353663,0.00045216,30]
[420482548,1776145719024,-846.5453183,0.00045216,120]
[420482549,1776145719055,-454529.7452764,0.00045216,120]
[420482550,1776145719085,-3157.656,0.00045216,120]
[420482551,1776145719117,-2495.52000197,0.00045216,30]
[420482552,1776145719152,-4600.0,0.00045216,60]
[420482553,1776145719182,-5100.0,0.00045216,40]
[420482554,1776145719213,-240.07,0.00045216,60]
[420482555,1776145719242,-2985.0,0.00045216,120]
[420482556,1776145719277,-935.88920759,0.00045216,120]
[420482557,1776145719310,-3061.69916,0.00045216,60]
[420482558,1776145719349,-3061.69916,0.00045216,60]
[420482559,1776145719388,-3061.69916,0.00045216,60]
[420482560,1776145719434,-3061.69916,0.00045216,60]
[420482561,1776145719473,-3061.69916,0.00045216,60]
[420482562,1776145719540,-562.69850785,0.00045216,30]
[420482563,1776145719600,-14783.0,0.00045216,30]
[420482564,1776145719649,-2000.0,0.00045216,120]
[420482565,1776145719700,-79304.23458924,0.00045216,60]
[420482566,1776145719741,-94000.0,0.00045216,120]
[420482567,1776145719775,-5900.39258424,0.00045216,30]
[420482568,1776145719808,-22358.57785325,0.00045216,60]
[420482569,1776145719838,-200000.0,0.00045216,30]
[420482570,1776145720311,-12443.0,0.00045216,30]
[420482571,1776145720347,-5000.0,0.00045216,120]
[420482572,1776145720376,-5000.0,0.00045216,120]
[420482573,1776145720406,-2161.439155,0.00045216,120]
[420482574,1776145720437,-100000.0,0.00045216,120]
[420482575,1776145720465,-300.0,0.00045216,88]
[420482576,1776145720494,-6358.0,0.00045216,30]
[420482577,1776145720531,-32858.33213326,0.00045216,30]
[420482578,1776145720568,-5000.0,0.00045216,120]
[420482579,1776145720607,-150.0,0.00045216,120]
[420482580,1776145720650,-21670.28623199,0.00045216,30]
[420482581,1776145720696,-410.26114227,0.00045216,120]
[420482582,1776145720725,-37809.04669429,0.00045216,30]
[420482583,1776145720762,-700.29732585,0.00045216,89]
[420482584,1776145720794,-172099.26558558,0.00045216,30]
[420482585,1776145720820,-262.0,0.00045216,120]
[420482586,1776145720852,-20000.0,0.00045216,120]
[420482587,1776145720879,-30000.0,0.00045216,120]
[420482588,1776145720910,-20000.0,0.00045216,120]
[420482589,1776145720943,-204.81679018,0.00045216,120]
[420482590,1776145720977,-167.65533377,0.00045216,30]
[420482591,1776145721021,-198.71,0.00045216,120]
[420482592,1776145721060,-210054.77550075,0.00045216,30]
[420482593,1776145721091,-4582.53826343,0.00045216,120]
[420482594,1776145721125,-361.0,0.00045216,120]
[420482595,1776145721160,-405.45747791,0.00045216,30]
[420482596,1776145721194,-631.29,0.00045216,120]
[420482597,1776145721223,-631.29,0.00045216,120]
[420482598,1776145721258,-631.29,0.00045216,120]
[420482599,1776145721289,-631.29,0.00045216,120]
[420482600,1776145721327,-631.29,0.00045216,120]
[420482601,1776145721361,-631.29,0.00045216,120]
[420482602,1776145721428,-631.29,0.00045216,120]
[420482603,1776145721476,-631.29,0.00045216,120]
[420482604,1776145721524,-631.29,0.00045216,120]
[420482605,1776145721569,-631.29,0.00045216,120]
[420482606,1776145721616,-631.29,0.00045216,120]
[420482607,1776145721664,-2692.14436453,0.00045216,120]
[420482608,1776145721704,-631.29,0.00045216,120]
[420482609,1776145721760,-631.29,0.00045216,120]
[420482610,1776145721795,-631.29,0.00045216,120]
[420482611,1776145721882,-631.29,0.00045216,120]
[420482612,1776145722001,-631.29,0.00045216,120]
[420482613,1776145722041,-631.29,0.00045216,120]
[420482614,1776145722080,-631.29,0.00045216,120]
[420482615,1776145722118,-631.29,0.00045216,120]
[420482616,1776145722171,-631.29,0.00045216,120]
[420482617,1776145722210,-631.29,0.00045216,120]
[420482618,1776145722243,-631.29,0.00045216,120]
[420482619,1776145722288,-2910.3997206,0.00045216,120]
[420482620,1776145722336,-631.29,0.00045216,120]
[420482621,1776145722371,-631.3,0.00045216,120]
[420482622,1776145722417,-552.21246516,0.00045216,120]
[420482623,1776145722466,-328.59756529,0.00045216,60]
[420482624,1776145722512,-1500.0,0.00045216,120]
[420482625,1776145722577,-1500.0,0.00045216,120]
[420482626,1776145722637,-1500.0,0.00045216,120]
[420482627,1776145722698,-1500.0,0.00045216,120]
[420482628,1776145722740,-1500.0,0.00045216,120]
[420482629,1776145722791,-1500.0,0.00045216,120]
[420482630,1776145722832,-1500.0,0.00045216,120]
[420482631,1776145722877,-1342.34402735,0.00045216,120]
[420482632,1776145722914,-324.36,0.00045216,30]
[420482633,1776145722969,-6999.999999,0.00045216,120]
[420482634,1776145723037,-2991129.2891046,0.00045216,30]
[420482635,1776145723140,-2000.0,0.00045216,120]
[420482636,1776145723181,-1330.0,0.00045216,120]
[420482637,1776145723224,-2000.0,0.00045216,120]
[420482638,1776145723265,-50000.0,0.00045216,60]
[420482639,1776145723313,-50000.0,0.00045216,30]
[420482640,1776145723362,-50000.0,0.00045216,30]
[420482641,1776145723423,-50000.0,0.00045216,60]
[420482642,1776145723468,-44033.034898,0.00045216,60]
[420482643,1776145723499,-500000.0,0.00045216,30]
[420482644,1776145723536,-2600.0,0.00045216,120]
[420482645,1776145723575,-100116.0,0.00045216,120]
[420482646,1776145723602,-414.233375,0.00045216,120]
[420482647,1776145723634,-1000.0,0.00045216,120]
[420482648,1776145723662,-1000.0,0.00045216,120]
[420482649,1776145723688,-1000.0,0.00045216,120]
[420482650,1776145723715,-1000.0,0.00045216,120]
[420482651,1776145723748,-1000.0,0.00045216,120]
[420482652,1776145723781,-1000.0,0.00045216,120]
[420482653,1776145723812,-1000.0,0.00045216,120]
[420482654,1776145723842,-1000.0,0.00045216,120]
[420482655,1776145723876,-1000.0,0.00045216,120]
[420482656,1776145723913,-1000.0,0.00045216,120]
[420482657,1776145723951,-1000.0,0.00045216,120]
[420482658,1776145723998,-1600.0,0.00045216,120]
[420482659,1776145724047,-1000.0,0.00045216,120]
[420482660,1776145724104,-1000.0,0.00045216,120]
[420482661,1776145724421,-1000.0,0.00045216,120]
[420482662,1776145724452,-1000.0,0.00045216,120]
[420482663,1776145724489,-1000.0,0.00045216,120]
[420482664,1776145724528,-1000.0,0.00045216,120]
[420482665,1776145724556,-1000.0,0.00045216,120]
[420482666,1776145724595,-1000.0,0.00045216,120]
[420482667,1776145724627,-1000.0,0.00045216,120]
[420482668,1776145724668,-1000.0,0.00045216,120]
[420482669,1776145724707,-1000.0,0.00045216,120]
[420482670,1776145724742,-1000.0,0.00045216,120]
[420482671,1776145724779,-1000.0,0.00045216,120]
[420482672,1776145724811,-1000.0,0.00045216,120]
[420482673,1776145724843,-1000.0,0.00045216,120]
[420482674,1776145724875,-1000.0,0.00045216,120]
[420482675,1776145724915,-1000.0,0.00045216,120]
[420482676,1776145724953,-1000.0,0.00045216,120]
[420482677,1776145724991,-1297.07,0.00045216,120]
[420482678,1776145725027,-5472.9738871,0.00045216,120]
[420482679,1776145725059,-209.9152452,0.00045216,120]
[420482680,1776145725090,-170.0,0.00045216,120]
[420482681,1776145725129,-8249.50166577,0.00045216,120]
[420482682,1776145725159,-237.82765739,0.00045216,120]
[420482683,1776145725201,-588304.0,0.00045216,60]
[420482684,1776145725243,-5212.23902162,0.00045216,30]
[420482685,1776145725272,-6837.29771964,0.00045216,30]
[420482686,1776145725305,-155.09564414,0.00045216,30]
[420482687,1776145725339,-152.38396905,0.00045216,120]
[420482688,1776145725367,-163.52088331,0.00045216,30]
[420482689,1776145725410,-187.28505133,0.00045216,30]
[420482690,1776145725439,-386.89917809,0.00045216,30]
[420482691,1776145725479,-529.93582283,0.00045216,120]
[420482692,1776145725531,-175.89596906,0.00045216,30]
[420482693,1776145725575,-1267.12065914,0.00045216,120]
[420482694,1776145725690,-1336.6557431,0.00045216,120]
[420482695,1776145725722,-152.56212679,0.00045216,30]
[420482696,1776145725759,-15835.76868179,0.00045216,30]
[420482697,1776145725803,-50000.0,0.00045216,120]
[420482698,1776145725834,-20000.0,0.00045216,120]
[420482699,1776145725877,-21000.0,0.00045216,120]
[420482700,1776145725916,-1000.0,0.00045216,120]
[420482701,1776145725964,-83696.99307646,0.00045216,120]
[420482702,1776145726001,-359.03003266,0.00045216,120]
[420482703,1776145726034,-359.03003266,0.00045216,120]
[420482704,1776145726071,-359.03003266,0.00045216,120]
[420482705,1776145726108,-359.03003266,0.00045216,120]
[420482706,1776145726143,-359.03003266,0.00045216,120]
[420482707,1776145726195,-359.03003266,0.00045216,120]
[420482708,1776145726236,-359.03003266,0.00045216,120]
[420482709,1776145726282,-359.03003266,0.00045216,120]
[420482710,1776145726318,-359.03003266,0.00045216,120]
[420482711,1776145726346,-359.03003266,0.00045216,120]
[420482712,1776145726380,-359.03003266,0.00045216,120]
[420482713,1776145726415,-359.03003266,0.00045216,120]
[420482714,1776145726462,-799.61,0.00045216,30]
[420482715,1776145726515,-17268.6254831,0.00045216,120]
[420482716,1776145726634,-170780.59,0.00045216,30]
[420482717,1776145726736,-547.0,0.00045216,120]
[420482718,1776145726797,-250.78,0.00045216,120]
[420482719,1776145726851,-1033.0,0.00045216,120]
[420482720,1776145726904,-260.45135205,0.00045216,120]
[420482721,1776145726942,-1333.72922372,0.00045216,120]
[420482722,1776145726981,-521.37138004,0.00045216,120]
[420482723,1776145727015,-406.6546,0.00045216,120]
[420482724,1776145727050,-395.87693875,0.00045216,120]
[420482725,1776145727081,-400.0,0.00045216,30]
[420482726,1776145727113,-400.0,0.00045216,30]
[420482727,1776145727153,-504.31917297,0.00045216,30]
[420482728,1776145727188,-400.0,0.00045216,30]
[420482729,1776145727225,-230.58509519,0.00045216,120]
[420482730,1776145727264,-7960.79985624,0.00045216,120]
[420482731,1776145727314,-1494.32795266,0.00045216,120]
[420482732,1776145727345,-187.5,0.00045216,120]
[420482733,1776145727396,-500.0,0.00045216,120]
[420482734,1776145727430,-975.6876932,0.00045216,120]
[420482735,1776145727498,-187.5,0.00045216,120]
[420482736,1776145727535,-202.5,0.00045216,120]
[420482737,1776145727579,-187.5,0.00045216,120]
[420482738,1776145727645,-187.5,0.00045216,120]
[420482739,1776145727675,-221.095125,0.00045216,120]
[420482740,1776145727709,-226.3638406,0.00045216,120]
[420482741,1776145727743,-212.0480169,0.00045216,120]
[420482742,1776145727773,-250.0,0.00045216,120]
[420482743,1776145727801,-330.0004591,0.00045216,120]
[420482744,1776145727833,-500.0,0.00045216,120]
[420482745,1776145727865,-574.4763969,0.00045216,120]
[420482746,1776145727904,-187.5,0.00045216,120]
[420482747,1776145727952,-187.5,0.00045216,120]
[420482748,1776145727988,-172.5617894,0.00045216,120]
[420482749,1776145728024,-500.0,0.00045216,120]
[420482750,1776145728062,-500.0,0.00045216,120]
[420482751,1776145728099,-500.0,0.00045216,120]
[420482752,1776145728144,-500.0,0.00045216,120]
[420482753,1776145728185,-500.0,0.00045216,120]
[420482754,1776145728229,-500.0,0.00045216,120]
[420482755,1776145728269,-500.0,0.00045216,120]
[420482756,1776145728554,-500.0,0.00045216,120]
[420482757,1776145728591,-500.0,0.00045216,120]
[420482758,1776145728622,-500.0,0.00045216,120]
[420482759,1776145728679,-500.0,0.00045216,120]
[420482760,1776145728734,-500.0,0.00045216,120]
[420482761,1776145728776,-500.0,0.00045216,120]
[420482762,1776145728808,-500.0,0.00045216,120]
[420482763,1776145728862,-500.0,0.00045216,120]
[420482764,1776145728893,-500.0,0.00045216,120]
[420482765,1776145728927,-500.0,0.00045216,120]
[420482766,1776145728969,-500.0,0.00045216,120]
[420482767,1776145729003,-599.7137451,0.00045216,120]
[420482768,1776145729040,-660.8268108,0.00045216,120]
[420482769,1776145729076,-187.5,0.00045216,120]
[420482770,1776145729111,-500.0,0.00045216,120]
[420482771,1776145729150,-500.0,0.00045216,120]
[420482772,1776145729195,-500.0,0.00045216,120]
[420482773,1776145729231,-520.8790131,0.00045216,120]
[420482774,1776145729280,-1029.00047147,0.00045216,120]
[420482775,1776145729337,-50000.0,0.00045216,91]
[420482776,1776145729406,-151.0,0.00045216,30]
[420482777,1776145729474,-500.0,0.00045216,120]
[420482778,1776145729517,-500.0,0.00045216,120]
[420482779,1776145729588,-708.5999515,0.00045216,120]
[420482780,1776145729659,-900.0,0.00045216,120]
[420482781,1776145729705,-900.0,0.00045216,120]
[420482782,1776145729745,-900.0,0.00045216,120]
[420482783,1776145729776,-900.0,0.00045216,120]
[420482784,1776145729824,-900.0,0.00045216,120]
[420482785,1776145729858,-900.0,0.00045216,120]
[420482786,1776145729893,-900.0,0.00045216,120]
[420482787,1776145729926,-900.0,0.00045216,120]
[420482788,1776145729964,-900.0,0.00045216,120]
[420482789,1776145730002,-900.0,0.00045216,120]
[420482790,1776145730097,-900.0,0.00045216,120]
[420482791,1776145730143,-900.0,0.00045216,120]
[420482792,1776145730173,-900.0,0.00045216,120]
[420482793,1776145730225,-900.0,0.00045216,120]
[420482794,1776145730265,-900.0,0.00045216,120]
[420482795,1776145730320,-900.0,0.00045216,120]
[420482796,1776145730369,-900.0,0.00045216,120]
[420482797,1776145730404,-900.0,0.00045216,120]
[420482798,1776145730451,-900.0,0.00045216,120]
[420482799,1776145730488,-900.0,0.00045216,120]
[420482800,1776145730533,-900.0,0.00045216,120]
[420482801,1776145730586,-900.0,0.00045216,120]
[420482802,1776145730620,-900.0,0.00045216,120]
[420482803,1776145730677,-900.0,0.00045216,120]
[420482804,1776145730718,-900.0,0.00045216,120]
[420482805,1776145730750,-900.0,0.00045216,120]
[420482806,1776145730789,-1450.3367809,0.00045216,120]
[420482807,1776145730819,-600.0,0.00045216,120]
[420482808,1776145730862,-600.0,0.00045216,120]
[420482809,1776145730895,-600.0,0.00045216,120]
[420482810,1776145730932,-600.0,0.00045216,120]
[420482811,1776145730970,-600.0,0.00045216,120]
[420482812,1776145731014,-600.0,0.00045216,120]
[420482813,1776145731071,-600.0,0.00045216,120]
[420482814,1776145731117,-600.0,0.00045216,120]
[420482815,1776145731165,-600.0,0.00045216,120]
[420482816,1776145731226,-600.0,0.00045216,120]
[420482817,1776145731265,-600.0,0.00045216,120]
[420482818,1776145731304,-600.0,0.00045216,120]
[420482819,1776145731336,-600.0,0.00045216,120]
[420482820,1776145731394,-600.0,0.00045216,120]
[420482821,1776145731440,-600.0,0.00045216,120]
[420482822,1776145731474,-600.0,0.00045216,120]
[420482823,1776145731510,-600.0,0.00045216,120]
[420482824,1776145731545,-600.0,0.00045216,120]
[420482825,1776145731582,-600.0,0.00045216,120]
[420482826,1776145731653,-600.0,0.00045216,120]
[420482827,1776145731689,-600.0,0.00045216,120]
[420482828,1776145731716,-600.0,0.00045216,120]
[420482829,1776145731746,-600.0,0.00045216,120]
[420482830,1776145731780,-600.0,0.00045216,120]
[420482831,1776145731814,-600.0,0.00045216,120]
[420482832,1776145731846,-600.0,0.00045216,120]
[420482833,1776145731883,-600.0,0.00045216,120]
[420482834,1776145731921,-600.0,0.00045216,120]
[420482835,1776145731951,-712.6665736,0.00045216,120]
[420482836,1776145731983,-50000.0,0.00045216,97]
[420482837,1776145732026,-2215.52,0.00045216,120]
[420482838,1776145732067,-266.38948071,0.00045216,120]
[420482839,1776145732111,-600.0,0.00045216,120]
[420482840,1776145732153,-600.0,0.00045216,120]
[420482841,1776145732201,-600.0,0.00045216,120]
[420482842,1776145732282,-600.0,0.00045216,120]
[420482843,1776145732387,-600.0,0.00045216,120]
[420482844,1776145732431,-600.0,0.00045216,120]
[420482845,1776145732471,-600.0,0.00045216,120]
[420482846,1776145732504,-600.0,0.00045216,120]
[420482847,1776145732542,-600.0,0.00045216,120]
[420482848,1776145732573,-600.0,0.00045216,120]
[420482849,1776145732614,-600.0,0.00045216,120]
[420482850,1776145732675,-600.0,0.00045216,120]
[420482851,1776145732956,-600.0,0.00045216,120]
[420482852,1776145733008,-600.0,0.00045216,120]
[420482853,1776145733046,-600.0,0.00045216,120]
[420482854,1776145733075,-600.0,0.00045216,120]
[420482855,1776145733119,-600.0,0.00045216,120]
[420482856,1776145733156,-600.0,0.00045216,120]
[420482857,1776145733185,-600.0,0.00045216,120]
[420482858,1776145733227,-600.0,0.00045216,120]
[420482859,1776145733277,-600.0,0.00045216,120]
[420482860,1776145733317,-600.0,0.00045216,120]
[420482861,1776145733359,-600.0,0.00045216,120]
[420482862,1776145733399,-600.0,0.00045216,120]
[420482863,1776145733447,-600.0,0.00045216,120]
[420482864,1776145733509,-600.0,0.00045216,120]
[420482865,1776145733550,-600.0,0.00045216,120]
[420482866,1776145733595,-600.0,0.00045216,120]
[420482867,1776145733634,-600.0,0.00045216,120]
[420482868,1776145733683,-600.0,0.00045216,120]
[420482869,1776145733725,-600.0,0.00045216,120]
[420482870,1776145733766,-718.6753066,0.00045216,120]
[420482871,1776145733802,-600.0,0.00045216,120]
[420482872,1776145733837,-600.0,0.00045216,120]
[420482873,1776145733871,-600.0,0.00045216,120]
[420482874,1776145733901,-600.0,0.00045216,120]
[420482875,1776145733954,-600.0,0.00045216,120]
[420482876,1776145733997,-600.0,0.00045216,120]
[420482877,1776145734031,-600.0,0.00045216,120]
[420482878,1776145734084,-600.0,0.00045216,120]
[420482879,1776145734123,-600.0,0.00045216,120]
[420482880,1776145734159,-600.0,0.00045216,120]
[420482881,1776145734198,-600.0,0.00045216,120]
[420482882,1776145734234,-600.0,0.00045216,120]
[420482883,1776145734272,-600.0,0.00045216,120]
[420482884,1776145734307,-600.0,0.00045216,120]
[420482885,1776145734339,-600.0,0.00045216,120]
[420482886,1776145734376,-600.0,0.00045216,120]
[420482887,1776145734411,-600.0,0.00045216,120]
[420482888,1776145734444,-633.9230415,0.00045216,120]
[420482889,1776145734479,-500.0,0.00045216,120]
[420482890,1776145734515,-500.0,0.00045216,120]
[420482891,1776145734550,-500.0,0.00045216,120]
[420482892,1776145734592,-500.0,0.00045216,120]
[420482893,1776145734628,-500.0,0.00045216,120]
[420482894,1776145734663,-500.0,0.00045216,120]
[420482895,1776145734718,-500.0,0.00045216,120]
[420482896,1776145734768,-500.0,0.00045216,120]
[420482897,1776145734817,-500.0,0.00045216,120]
[420482898,1776145734858,-500.0,0.00045216,120]
[420482899,1776145734904,-500.0,0.00045216,120]
[420482900,1776145734939,-500.0,0.00045216,120]
[420482901,1776145734988,-500.0,0.00045216,120]
[420482902,1776145735026,-500.0,0.00045216,120]
[420482903,1776145735074,-500.0,0.00045216,120]
[420482904,1776145735149,-500.0,0.00045216,120]
[420482905,1776145735193,-1100.0,0.00045216,120]
[420482906,1776145735233,-500.0,0.00045216,120]
[420482907,1776145735271,-1100.0,0.00045216,120]
[420482908,1776145735304,-500.0,0.00045216,120]
[420482909,1776145735342,-1100.0,0.00045216,120]
[420482910,1776145735383,-500.0,0.00045216,120]
[420482911,1776145735420,-1100.0,0.00045216,120]
[420482912,1776145735470,-500.0,0.00045216,120]
[420482913,1776145735509,-1100.0,0.00045216,120]
[420482914,1776145735561,-500.0,0.00045216,120]
[420482915,1776145735614,-1100.0,0.00045216,120]
[420482916,1776145735660,-500.0,0.00045216,120]
[420482917,1776145735704,-1100.0,0.00045216,120]
[420482918,1776145735734,-500.0,0.00045216,120]
[420482919,1776145735768,-1100.0,0.00045216,120]
[420482920,1776145735799,-1100.0,0.00045216,120]
[420482921,1776145735831,-500.0,0.00045216,120]
[420482922,1776145735871,-1100.0,0.00045216,120]
[420482923,1776145735919,-1100.0,0.00045216,120]
[420482924,1776145735964,-500.0,0.00045216,120]
[420482925,1776145736075,-1100.0,0.00045216,120]
[420482926,1776145736136,-656.5854516,0.00045216,120]
[420482927,1776145736181,-1100.0,0.00045216,120]
[420482928,1776145736210,-1100.0,0.00045216,120]
[420482929,1776145736253,-1100.0,0.00045216,120]
[420482930,1776145736290,-1100.0,0.00045216,120]
[420482931,1776145736330,-1100.0,0.00045216,120]
[420482932,1776145736369,-1100.0,0.00045216,120]
[420482933,1776145736405,-1100.0,0.00045216,120]
[420482934,1776145736447,-1100.0,0.00045216,120]
[420482935,1776145736480,-1100.0,0.00045216,120]
[420482936,1776145736513,-1100.0,0.00045216,120]
[420482937,1776145736548,-1100.0,0.00045216,120]
[420482938,1776145736584,-1100.0,0.00045216,120]
[420482939,1776145736613,-1100.0,0.00045216,120]
[420482940,1776145736650,-1100.0,0.00045216,120]
[420482941,1776145736683,-1100.0,0.00045216,120]
[420482942,1776145736717,-1100.0,0.00045216,120]
[420482943,1776145736758,-1492.000716,0.00045216,120]
[420482944,1776145736806,-151.0,0.00045216,30]
[420482945,1776145736854,-49611.85743252,0.00045216,45]
[420482946,1776145738029,1832.7,4.18e-05,2]
[420482947,1776145738404,1832.7,4.4e-05,2]
[420482948,1776145738513,1832.7,4.62e-05,2]
[420482949,1776145738625,1832.7,4.84e-05,2]
[420482950,1776145738747,152.5,5.06e-05,2]
[420482951,1776145738776,1680.2,5.06e-05,2]
[420482952,1776145738888,1832.7,5.28e-05,2]
[420482953,1776145739058,1832.7,5.5e-05,2]
[420482954,1776145739213,1832.7,5.72e-05,2]
[420482955,1776145739348,1832.7,5.94e-05,2]
[420482956,1776145739451,989.01,6.16e-05,2]
[420482957,1776145739486,843.69,6.16e-05,2]
[420482958,1776145739596,1832.7,6.38e-05,2]
[420482959,1776145739827,1832.7,6.6e-05,2]
[420482960,1776145739892,1832.7,6.82e-05,2]
[420482961,1776145739960,1832.7,7.04e-05,2]
[420482962,1776145740068,1825.52,7.26e-05,2]
[420482963,1776145740103,7.18,7.26e-05,2]
[420482964,1776145740256,1832.7,7.48e-05,2]
[420482965,1776145740515,1832.7,7.7e-05,2]
[420482966,1776145740629,1832.7,7.92e-05,2]
[420482967,1776145740810,1832.7,8.14e-05,2]
[420482968,1776145741073,1832.7,8.36e-05,2]
[420482969,1776145751839,-156302.84883083,0.00045216,45]
[420482970,1776145751880,-170.5912026,0.00045216,120]
[420482971,1776145751921,-3176.55978659,0.00045216,120]
[420482972,1776145751955,-288.0,0.00045216,120]
[420482973,1776145751997,-150.05123038,0.00045216,120]